fUSD/lending_fUSD_20251003
["ID","MTS","AMOUNT","RATE_DAILY","PERIOD"]
[388931725,1759516242993,-192.18315548,0.00016837,2]
[388931726,1759516243003,-500.0,0.00016837,2]
[388931727,1759516243016,-500.0,0.00016837,2]
[388931728,1759516243027,-500.0,0.00016837,2]
[388931729,1759516243039,-500.0,0.00016837,2]
[388931730,1759516243049,-1705.69110427,0.00016888,2]
[388931731,1759516243141,-671.6619084,0.00016888,2]
[388931732,1759516243153,-1839.3161993,0.00016888,2]
[388931746,1759516246393,-1709.6186755,0.00016888,2]
[388931747,1759516246408,-691.65,0.00016888,2]
[388931748,1759516246420,-2429.712504,0.00016888,2]
[388931749,1759516247100,-669.26057022,0.00016888,2]
[388931750,1759516247116,-4397.87425973,0.00016888,2]
[388931751,1759516247135,-1692.2736255,0.00016888,2]
[388931752,1759516247147,-383.5086327,0.00016888,2]
[388931753,1759516247175,-4438.49759501,0.00016888,2]
[388931754,1759516247184,-339.24553915,0.00016948,2]
[388931755,1759516247194,-259.317468,0.00016959,2]
[388931756,1759516247204,-259.317468,0.00016999,2]
[388931757,1759516247214,-189115.53499229,0.00017,2]
[388931758,1759516247225,-21722.99744401,0.00017,2]
[388931759,1759516247237,-751.51255102,0.00017,2]
[388931760,1759516247268,-626.8265502,0.00017,2]
[388931761,1759516247280,-2510.98827239,0.00017,2]
[388931762,1759516247291,-2280.47610914,0.00017,2]
[388931763,1759516330937,230.0,0.000143,2]
[388931764,1759516331392,226.0,0.0001548,2]
[388931765,1759516392472,200.0,0.000165,6]
[388931766,1759516394576,500.0,0.000166,6]
[388931767,1759516506451,198.56984466,0.00016579,2]
[388931768,1759516524227,200.0,0.00016016,2]
[388931769,1759516528284,457.64925086,0.00016603,30]
[388931770,1759516563117,262.42,8.008e-05,2]
[388931771,1759516563201,262.42,8.43e-05,2]
[388931772,1759516563270,262.42,8.851e-05,2]
[388931773,1759516563334,262.42,9.273e-05,2]
[388931774,1759516563471,262.42,9.694e-05,2]
[388931775,1759516563689,262.42,0.00010116,2]
[388931776,1759516563972,262.42,0.00010537,2]
[388931777,1759516564159,262.42,0.00010959,2]
[388931778,1759516564341,262.42,0.0001138,2]
[388931779,1759516564584,262.42,0.00011802,2]
[388931780,1759516564848,154.73,0.00012223,2]
[388931781,1759516564882,107.69,0.00012223,2]
[388931782,1759516565006,262.42,0.00012644,2]
[388931783,1759516565219,262.42,0.00013066,2]
[388931784,1759516565433,262.42,0.00013487,2]
[388931785,1759516565638,262.42,0.00013909,2]
[388931786,1759516565861,262.42,0.0001433,2]
[388931787,1759516566064,262.42,0.00014752,2]
[388931788,1759516566287,156.67479069,0.00015173,2]
[388931789,1759516566708,105.74520931,0.00015173,2]
[388931790,1759516566950,262.42,0.00015595,2]
[388931791,1759516567160,262.42,0.00016016,2]
[388931793,1759516693907,666.0,0.00016007,3]
[388931794,1759516738350,11235.59163007,0.00016602,2]
[388931795,1759516862818,222.0,0.000133,2]
[388931796,1759516863909,217.0,0.0001448,2]
[388931797,1759516864191,213.0,0.0001567,2]
[388931798,1759516899586,250.0,0.00015943,2]
[388931799,1759516899891,2067.12,0.00015943,2]
[388931800,1759516933487,1017.12,0.00015974,2]
[388931801,1759517114118,2751.0,0.00015962,2]
[388931802,1759517119170,150.0,0.00015288,2]
[388931803,1759517119340,150.0,0.00015288,2]
[388931804,1759517119382,150.0,0.00015854,2]
[388931805,1759517119441,150.0,0.0001642,2]
[388931806,1759517119584,150.0,0.00015288,2]
[388931807,1759517119627,150.0,0.00016137,2]
[388931808,1759517123630,150.0,0.00015288,2]
[388931809,1759517125930,150.0,0.00015288,2]
[388931810,1759517129171,150.0,0.00015288,2]
[388931811,1759517139991,150.0,0.00015288,2]
[388931812,1759517141007,150.0,0.00015288,2]
[388931813,1759517142670,150.0,0.00015288,2]
[388931814,1759517145842,150.0,0.00015288,2]
[388931815,1759517227342,600.0,0.000165,6]
[388931816,1759517229238,194.76652254,0.000166,6]
[388931817,1759517229268,1005.23347746,0.000166,6]
[388931818,1759517275369,1838.21,0.00016012,2]
[388931819,1759517336580,1000.0,0.00016438,2]
[388931820,1759517396235,209.0,0.000123,2]
[388931821,1759517396580,205.0,0.0001348,2]
[388931822,1759517396968,200.0,0.0001467,2]
[388931823,1759517397657,196.0,0.0001585,2]
[388931824,1759517415085,3693.57,0.00015879,2]
[388931828,1759517432113,-250.0,0.0001667,2]
[388931829,1759517432124,-195.0,0.0001667,2]
[388931830,1759517432134,-200.00000001,0.0001667,2]
[388931831,1759517432144,-441.3446,0.00016693,2]
[388931832,1759517432153,-935.1692073,0.000167,6]
[388931833,1759517432173,-964.8307927,0.000167,6]
[388931834,1759517432182,-185.14,0.000167,2]
[388931835,1759517432192,-334.9997701,0.000167,2]
[388931836,1759517432202,-123.19732573,0.0001678,2]
[388931837,1759517432231,-376.80267427,0.0001678,2]
[388931838,1759517432241,-738.26447346,0.00016785,2]
[388931839,1759517432254,-115.73787997,0.00016788,2]
[388931844,1759517432949,-184.26212003,0.00016788,2]
[388931845,1759517432959,-300.0,0.00016788,2]
[388931846,1759517432968,-642.15187996,0.00016788,2]
[388931847,1759517432980,-557.84812004,0.00016788,2]
[388931848,1759517432990,-510.0,0.00016789,2]
[388931849,1759517432999,-153.19917327,0.0001679,2]
[388931850,1759517433008,-231.28369723,0.0001679,2]
[388931851,1759517433018,-7.32848277,0.0001679,2]
[388931852,1759517433030,-781.96064254,0.0001679,2]
[388931853,1759517433063,-666.68315366,0.0001679,2]
[388931854,1759517433075,-6509.43825371,0.0001679,2]
[388931855,1759517433085,-2279.1872703,0.0001679,2]
[388931856,1759517433094,-502.24626155,0.00016799,2]
[388931857,1759517433118,-2397.30373845,0.00016799,2]
[388931858,1759517433128,-157.017,0.00016799,2]
[388931859,1759517433138,-1350.76908205,0.000168,2]
[388931860,1759517433149,-1149.23091795,0.000168,2]
[388931861,1759517433159,-958.78850807,0.000168,2]
[388931862,1759517433170,-760.19904236,0.000168,2]
[388931863,1759517433278,-29155.26564993,0.000168,2]
[388931864,1759517433291,-41210.82063608,0.000168,2]
[388931865,1759517433303,-3095.03679904,0.000168,2]
[388931866,1759517433313,-2500.0,0.000168,6]
[388931867,1759517433322,-1001.46757,0.0001683,2]
[388931868,1759517433334,-8260.13072239,0.00016845,2]
[388931869,1759517433343,-200.0,0.00016848,2]
[388931870,1759517433354,-151.0,0.0001689,2]
[388931871,1759517433365,-151.0,0.0001689,2]
[388931872,1759517433375,-151.0,0.0001689,2]
[388931873,1759517433384,-151.0,0.0001689,2]
[388931874,1759517433394,-500.0,0.0001689,2]
[388931875,1759517433404,-151.0,0.0001689,2]
[388931876,1759517433413,-500.0,0.0001689,2]
[388931877,1759517433422,-151.0,0.0001689,2]
[388931878,1759517433432,-500.0,0.0001689,2]
[388931879,1759517433442,-151.0,0.0001689,2]
[388931880,1759517433452,-500.0,0.0001689,2]
[388931881,1759517433462,-151.0,0.0001689,2]
[388931882,1759517433563,-285.61840236,0.0001689,2]
[388931883,1759517433573,-188.11971456,0.0001689,2]
[388931884,1759517433583,-250.0,0.0001689,2]
[388931885,1759517433593,-500.0,0.0001689,2]
[388931886,1759517433603,-500.0,0.0001689,2]
[388931887,1759517433614,-500.0,0.0001689,2]
[388931888,1759517433624,-322.6107,0.0001689,2]
[388931889,1759517433635,-486.27406119,0.0001689,2]
[388931890,1759517433645,-151.0,0.0001689,2]
[388931891,1759517433655,-236.92,0.0001689,2]
[388931892,1759517433665,-236.92,0.0001689,2]
[388931893,1759517433674,-236.92,0.0001689,2]
[388931894,1759517433684,-151.0,0.00016897,2]
[388931895,1759517433693,-500.0,0.00016899,2]
[388931896,1759517433703,-500.0,0.00016899,2]
[388931897,1759517433712,-500.0,0.00016899,2]
[388931898,1759517433722,-500.0,0.00016899,2]
[388931899,1759517433731,-500.0,0.00016899,2]
[388931900,1759517433741,-500.0,0.00016899,2]
[388931901,1759517433751,-500.0,0.00016899,2]
[388931902,1759517433760,-379.5360961,0.00016899,2]
[388931903,1759517433770,-500.0,0.00016899,2]
[388931904,1759517433780,-500.0,0.00016899,2]
[388931905,1759517433789,-500.0,0.00016899,2]
[388931906,1759517433799,-500.0,0.00016899,2]
[388931907,1759517433807,-500.0,0.00016899,2]
[388931908,1759517433817,-500.0,0.00016899,2]
[388931909,1759517433826,-500.0,0.00016899,2]
[388931910,1759517433836,-500.0,0.00016899,2]
[388931911,1759517433845,-500.0,0.00016899,2]
[388931912,1759517433855,-183.17370879,0.00016899,2]
[388931913,1759517433864,-178.18608201,0.00016899,2]
[388931914,1759517433874,-500.0,0.00016899,2]
[388931915,1759517433886,-232.15138453,0.00016899,2]
[388931916,1759517433895,-299.47276039,0.00016899,2]
[388931917,1759517433904,-500.0,0.00016899,2]
[388931918,1759517433914,-500.0,0.00016899,2]
[388931919,1759517433923,-500.0,0.00016899,2]
[388931920,1759517433932,-500.0,0.00016899,2]
[388931921,1759517433942,-338.62015155,0.00016899,2]
[388931922,1759517433951,-171.92393596,0.00016899,2]
[388931923,1759517433961,-500.0,0.00016899,2]
[388931924,1759517433971,-500.0,0.00016899,2]
[388931925,1759517433981,-500.0,0.00016899,2]
[388931926,1759517433990,-115568.1122356,0.000169,2]
[388931927,1759517434003,-40234.44355454,0.000169,2]
[388931928,1759517434015,-14338.84450986,0.000169,2]
[388931929,1759517434025,-8565.75555911,0.000169,2]
[388931930,1759517434034,-3200.0,0.000169,6]
[388931931,1759517434044,-233.46921616,0.000169,2]
[388931932,1759517434054,-458.91433794,0.000169,2]
[388931933,1759517434063,-551.79572032,0.000169,2]
[388931934,1759517434072,-172.87523607,0.000169,2]
[388931935,1759517434082,-3095.03679902,0.00016903,2]
[388931936,1759517434091,-197.39267675,0.00016948,2]
[388931937,1759517434101,-631.62087787,0.00016948,2]
[388931938,1759517434111,-500.0,0.00016949,2]
[388931939,1759517434120,-2362.0,0.00016949,2]
[388931940,1759517434133,-150.0,0.00016949,2]
[388931941,1759517434143,-500.0,0.00016949,2]
[388931942,1759517434153,-255.81612999,0.00016949,2]
[388931944,1759517438086,-178.52862236,0.000169,2]
[388931945,1759517438096,-103.02137764,0.00016949,2]
[388931946,1759517438108,-972.8,0.00016949,2]
[388931947,1759517438120,-121.36249237,0.00016949,2]
[388931948,1759517438130,-500.0,0.00016949,2]
[388931949,1759517438140,-150.0,0.00016949,2]
[388931950,1759517438149,-488.63750763,0.00016949,2]
[388931951,1759517438161,-11.36249237,0.00016949,2]
[388931952,1759517438171,-150.0,0.00016949,2]
[388931953,1759517438181,-150.60953712,0.00016949,2]
[388931954,1759517438191,-150.0,0.00016949,2]
[388931955,1759517438201,-150.0,0.00016949,2]
[388931956,1759517438211,-500.0,0.00016949,2]
[388931957,1759517438221,-6.12800051,0.0001695,2]
[388931958,1759517438232,-947.53446188,0.0001695,2]
[388932056,1759517440136,-47.80510761,0.0001695,2]
[388932057,1759517440146,-675.21936828,0.00016955,2]
[388932058,1759517440157,-1226.7959432,0.00016955,2]
[388932059,1759517440168,-3915.99999993,0.00016955,2]
[388932060,1759517440331,-348.18498,0.00016955,2]
[388932069,1759517440637,-2716.48822339,0.00016955,2]
[388932070,1759517440649,-150.0,0.00016959,2]
[388932071,1759517440659,-75.02637611,0.00016959,2]
[388932072,1759517440686,-424.97362389,0.00016959,2]
[388932073,1759517440695,-500.0,0.00016959,2]
[388932074,1759517440705,-500.0,0.00016959,2]
[388932075,1759517440714,-150.19437263,0.00016959,2]
[388932076,1759517440724,-151.15914185,0.00016959,2]
[388932077,1759517440733,-500.0,0.00016973,2]
[388932078,1759517440742,-500.0,0.00016973,2]
[388932079,1759517440752,-562.5287038,0.00016973,2]
[388932080,1759517440761,-500.0,0.00016973,2]
[388932081,1759517440771,-500.0,0.00016973,2]
[388932082,1759517440780,-500.0,0.00016973,2]
[388932083,1759517440790,-500.0,0.00016973,2]
[388932084,1759517440800,-500.0,0.00016973,2]
[388932085,1759517440811,-500.0,0.00016973,2]
[388932086,1759517440820,-500.0,0.00016973,2]
[388932087,1759517440832,-500.0,0.00016973,2]
[388932088,1759517440843,-500.0,0.00016973,2]
[388932089,1759517440854,-500.0,0.00016973,2]
[388932090,1759517440865,-500.0,0.00016973,2]
[388932091,1759517440876,-500.0,0.00016973,2]
[388932092,1759517440887,-500.0,0.00016973,2]
[388932093,1759517440896,-500.0,0.00016973,2]
[388932094,1759517440906,-500.0,0.00016973,2]
[388932095,1759517440916,-500.0,0.00016973,2]
[388932096,1759517440926,-500.0,0.00016973,2]
[388932097,1759517440936,-369.57854038,0.00016973,2]
[388932098,1759517440946,-500.0,0.00016973,2]
[388932099,1759517440955,-500.0,0.00016973,2]
[388932100,1759517440966,-500.0,0.00016973,2]
[388932101,1759517440976,-500.0,0.00016973,2]
[388932102,1759517440987,-500.0,0.00016973,2]
[388932103,1759517440998,-500.0,0.00016973,2]
[388932104,1759517441007,-500.0,0.00016973,2]
[388932105,1759517441016,-507.95810235,0.00016973,2]
[388932106,1759517441026,-500.0,0.00016973,2]
[388932107,1759517441035,-30000.0,0.0001698,2]
[388932108,1759517441044,-888.06061822,0.00016981,2]
[388932109,1759517441054,-500.0,0.00016983,2]
[388932110,1759517441063,-236.92,0.00016986,2]
[388932111,1759517441072,-150.00000001,0.00016986,2]
[388932112,1759517441082,-150.00000001,0.00016986,2]
[388932113,1759517441092,-150.0,0.00016986,2]
[388932114,1759517441102,-150.0,0.00016986,2]
[388932115,1759517441111,-150.0,0.00016986,2]
[388932116,1759517441120,-150.0,0.00016986,2]
[388932117,1759517441130,-150.0,0.00016986,2]
[388932118,1759517441143,-236.92,0.0001699,2]
[388932119,1759517441152,-184.28006954,0.0001699,2]
[388932120,1759517441162,-150.79326304,0.0001699,2]
[388932121,1759517441171,-500.0,0.0001699,2]
[388932122,1759517441181,-500.0,0.0001699,2]
[388932123,1759517441190,-150.0,0.0001699,2]
[388932124,1759517441200,-150.0,0.0001699,2]
[388932125,1759517441209,-150.0,0.0001699,2]
[388932126,1759517441219,-1360.6508915,0.00016996,2]
[388932127,1759517441229,-6663.1097403,0.00016996,2]
[388932128,1759517441238,-590.6500001,0.00016996,2]
[388932129,1759517441247,-13931.4975998,0.00016996,2]
[388932130,1759517441260,-3136.6870505,0.00016996,2]
[388932131,1759517441269,-151.0,0.00016997,2]
[388932132,1759517441279,-6079.95497677,0.00016999,2]
[388932133,1759517441288,-151.05853888,0.00016999,2]
[388932134,1759517441299,-322.09016029,0.00016999,2]
[388932135,1759517441308,-7244.29425991,0.00016999,2]
[388932136,1759517441318,-300.0,0.00016999,2]
[388932137,1759517441329,-164941.52992272,0.00017,2]
[388932147,1759517444249,-637.69581127,0.00016998,2]
[388932148,1759517444263,-227.29977113,0.00016998,2]
[388932149,1759517444273,-4753.50441761,0.00017,2]
[388932150,1759517444352,-5547.2032,0.00017,2]
[388932151,1759517444428,-6437.2,0.00017,2]
[388932152,1759517444440,-5628.63126363,0.00017,2]
[388932153,1759517446072,-500.0,0.00016949,2]
[388932154,1759517446083,-1591.54442055,0.00017,2]
[388932155,1759517446177,-4612.74208567,0.00017,2]
[388932156,1759517446228,-3084.97037303,0.00017,2]
[388932157,1759517446243,-23889.9754,0.00017,2]
[388932158,1759517446281,-62366.62826762,0.00017,2]
[388932159,1759517446292,-52232.40696991,0.00017,2]
[388932188,1759517670819,198.74,0.0001607,2]
[388932192,1759517719809,150.0,0.00016055,2]
[388932193,1759517813618,1064.03,0.00016015,2]
[388932194,1759517937637,193.0,0.000113,2]
[388932195,1759517937987,189.0,0.0001248,2]
[388932196,1759517938500,185.0,0.0001367,2]
[388932197,1759517938787,181.0,0.0001485,2]
[388932198,1759517939538,177.0,0.0001603,2]
[388932199,1759518012987,170.35,0.00016494,2]
[388932200,1759518024474,6719.31,0.00016001,2]
[388932201,1759518041592,200.0,0.00016014,2]
[388932202,1759518078355,345.18,0.00015962,2]
[388932203,1759518120825,35340.24608129,0.00016,2]
[388932204,1759518153915,-190.69680981,0.00016612,2]
[388932205,1759518155695,-3.7026276,0.00016612,2]
[388932206,1759518161450,307.07,0.00015946,2]
[388932208,1759518338152,150.0,0.00015288,2]
[388932209,1759518338209,150.0,0.00015288,2]
[388932210,1759518338250,150.0,0.00015288,2]
[388932211,1759518353962,7825.19,0.00015914,2]
[388932212,1759518402694,166.47344729,0.00016593,2]
[388932213,1759518417452,345.1,0.00015931,2]
[388932214,1759518469393,175.0,0.000103,2]
[388932215,1759518469840,171.0,0.0001148,2]
[388932216,1759518470577,168.0,0.0001267,2]
[388932217,1759518471523,164.0,0.0001385,2]
[388932218,1759518471916,161.0,0.0001503,2]
[388932219,1759518472340,315.0,0.0001622,2]
[388932220,1759518558620,500.0,0.000159,2]
[388932221,1759518572965,-100000.0,0.000181,120]
[388932222,1759518592741,-200000.0,0.000181,120]
[388932223,1759518604492,-200000.0,0.000181,120]
[388932224,1759518629532,-200000.0,0.000181,120]
[388932247,1759518632679,-347.0,0.00016679,2]
[388932249,1759518632689,-1270.3534278,0.00016682,2]
[388932257,1759518632743,-729.6465722,0.00016682,2]
[388932261,1759518632753,-250.0,0.00016686,2]
[388932265,1759518632762,-236.59533907,0.00016686,2]
[388932269,1759518632772,-195.0,0.00016686,2]
[388932273,1759518632782,-460.52209858,0.00016691,2]
[388932277,1759518632791,-500.0,0.00016693,2]
[388932280,1759518632802,-1200.0,0.00016697,2]
[388932283,1759518632811,-176.0,0.00016697,2]
[388932286,1759518632820,-300.0,0.00016697,2]
[388932289,1759518632829,-300.0,0.00016697,2]
[388932292,1759518632838,-1200.0,0.00016697,2]
[388932293,1759518632848,-7965.41053268,0.00016698,2]
[388932295,1759518632857,-644.79446246,0.00016698,2]
[388932297,1759518632867,-231.28369723,0.00016698,2]
[388932299,1759518632876,-821.42911974,0.00016698,2]
[388932301,1759518632886,-250.0,0.00016705,2]
[388932303,1759518632895,-195.0,0.00016705,2]
[388932305,1759518632904,-179.41879141,0.00016708,2]
[388932307,1759518632913,-550.0,0.00016752,2]
[388932309,1759518632922,-8260.13072239,0.00016753,2]
[388932311,1759518632932,-19999.99,0.00016753,2]
[388932313,1759518632942,-29999.99,0.00016753,2]
[388932315,1759518632951,-9999.99,0.00016753,2]
[388932316,1759518632960,-26860.01,0.00016753,2]
[388932317,1759518632970,-7500.0,0.00016767,10]
[388932318,1759518632979,-8565.75555911,0.00016808,2]
[388932319,1759518632989,-1064.03,0.00016816,2]
[388932320,1759518632999,-2200.35,0.00016822,2]
[388932321,1759518633009,-347.0,0.00016823,2]
[388932322,1759518633019,-1034.00543,0.0001683,2]
[388932323,1759518633029,-200.0,0.00016848,2]
[388932324,1759518633039,-1425.0,0.0001685,2]
[388932325,1759518633049,-8882.6885148,0.00016863,2]
[388932326,1759518633059,-347.0,0.00016881,2]
[388932327,1759518633070,-888.06061822,0.00016884,2]
[388932328,1759518633080,-2528.36914183,0.00016899,2]
[388932329,1759518633090,-500.0,0.00016899,2]
[388932330,1759518633099,-594.60343577,0.00016899,2]
[388932331,1759518633109,-500.0,0.00016899,2]
[388932332,1759518633118,-500.0,0.00016899,2]
[388932333,1759518633129,-500.0,0.00016899,2]
[388932334,1759518633139,-500.0,0.00016899,2]
[388932335,1759518633148,-49.64687821,0.000169,2]
[388932336,1759518633169,-926.01549467,0.000169,2]
[388932337,1759518633191,-562.5,0.000169,2]
[388932338,1759518633203,-961.83762712,0.000169,2]
[388932339,1759518633213,-1398.9738,0.000169,2]
[388932340,1759518633224,-186.77537292,0.000169,2]
[388932341,1759518633233,-2358.593,0.000169,2]
[388932342,1759518633243,-157.017,0.000169,2]
[388932343,1759518633253,-393.35514678,0.000169,2]
[388932344,1759518633263,-172.87523607,0.000169,2]
[388932345,1759518633272,-367.86381354,0.000169,2]
[388932346,1759518633281,-159.37091027,0.000169,2]
[388932347,1759518633291,-347.0,0.00016917,2]
[388932348,1759518633301,-8969.3820957,0.00016918,2]
[388932349,1759518633455,-241.96589415,0.00016918,2]
[388932350,1759518633464,-347.0,0.00016941,2]
[388932351,1759518633475,-1034.00543,0.0001695,2]
[388932352,1759518633485,-500.0,0.00016973,2]
[388932353,1759518633494,-500.0,0.00016973,2]
[388932354,1759518633504,-500.0,0.00016973,2]
[388932355,1759518633513,-500.0,0.00016973,2]
[388932356,1759518633523,-500.0,0.00016973,2]
[388932357,1759518633533,-500.0,0.00016973,2]
[388932358,1759518633542,-500.0,0.00016973,2]
[388932359,1759518633552,-500.0,0.00016973,2]
[388932360,1759518633561,-500.0,0.00016973,2]
[388932361,1759518633570,-468.46191497,0.00016973,2]
[388932362,1759518633583,-490.71749362,0.00016973,2]
[388932363,1759518633593,-500.0,0.00016973,2]
[388932364,1759518633602,-500.0,0.00016973,2]
[388932365,1759518633612,-500.0,0.00016973,2]
[388932366,1759518633622,-500.0,0.00016973,2]
[388932367,1759518633631,-500.0,0.00016973,2]
[388932368,1759518633639,-500.0,0.00016973,2]
[388932369,1759518633648,-9552.16786547,0.00016973,2]
[388932370,1759518633657,-322.6107,0.0001699,2]
[388932371,1759518633668,-500.0,0.0001699,2]
[388932372,1759518633677,-460.0,0.0001699,2]
[388932373,1759518633686,-500.0,0.0001699,2]
[388932374,1759518633695,-2264.0,0.0001699,2]
[388932375,1759518633705,-150.0,0.0001699,2]
[388932376,1759518633714,-500.0,0.0001699,2]
[388932377,1759518633723,-1392.0,0.0001699,2]
[388932378,1759518633732,-150.0,0.0001699,2]
[388932379,1759518633742,-150.0,0.0001699,2]
[388932380,1759518633751,-500.0,0.0001699,2]
[388932381,1759518633761,-150.0,0.0001699,2]
[388932382,1759518633771,-500.0,0.0001699,2]
[388932383,1759518633780,-500.0,0.0001699,2]
[388932384,1759518633790,-150.0,0.0001699,2]
[388932385,1759518633799,-150.0,0.0001699,2]
[388932386,1759518633808,-150.0,0.0001699,2]
[388932387,1759518633818,-150.0,0.0001699,2]
[388932388,1759518633827,-150.0,0.0001699,2]
[388932389,1759518633838,-159.4120078,0.0001699,2]
[388932390,1759518633848,-150.0,0.0001699,2]
[388932391,1759518633858,-150.0,0.0001699,2]
[388932392,1759518633867,-150.0,0.0001699,2]
[388932393,1759518633876,-150.0,0.0001699,2]
[388932394,1759518633886,-150.0,0.0001699,2]
[388932395,1759518633896,-150.0,0.0001699,2]
[388932396,1759518633906,-150.0,0.0001699,2]
[388932397,1759518633915,-500.0,0.0001699,2]
[388932398,1759518633926,-150.0,0.0001699,2]
[388932399,1759518633936,-150.0,0.0001699,2]
[388932400,1759518633946,-202.7972367,0.0001699,2]
[388932401,1759518633956,-150.0,0.0001699,2]
[388932402,1759518633967,-500.0,0.0001699,2]
[388932403,1759518633977,-1401.45,0.0001699,2]
[388932404,1759518633987,-3416.46200918,0.00016998,2]
[388932410,1759518638392,-343.8448262,0.00016898,2]
[388932411,1759518638402,-3814.708871,0.00016998,2]
[388932534,1759518640429,-604.11208764,0.00016998,2]
[388932537,1759518640440,-1000.0,0.00016998,2]
[388932542,1759518640484,-1039.20981068,0.00016998,2]
[388932544,1759518640493,-899.07095092,0.00016998,2]
[388932547,1759518640503,-2210.19356163,0.00016998,2]
[388932548,1759518640516,-4608.76246905,0.00016998,2]
[388932549,1759518640526,-183.4671138,0.00016999,5]
[388932550,1759518640535,-6172.65641716,0.00016999,2]
[388932551,1759518640558,-2965.59234616,0.00016999,2]
[388932552,1759518640569,-861.75123668,0.00016999,2]
[388932553,1759518640578,-300.0,0.00016999,2]
[388932554,1759518640590,-300.0,0.00016999,2]
[388932555,1759518640599,-305.28586926,0.00016999,2]
[388932556,1759518640608,-159.1098398,0.00016999,2]
[388932557,1759518640617,-596.38706789,0.00016999,2]
[388932558,1759518640628,-234.25063471,0.00016999,2]
[388932559,1759518640637,-150.0,0.00016999,2]
[388932560,1759518640646,-190.22851751,0.00016999,2]
[388932561,1759518640655,-182.57773613,0.00016999,2]
[388932562,1759518640667,-141668.17749726,0.00017,2]
[388932563,1759518640675,-91716.90663394,0.00017,2]
[388932572,1759518643363,-132397.82523379,0.00017,2]
[388932575,1759518643408,6359.23,0.00016396,2]
[388932576,1759518643522,-1641.0,0.00017,2]
[388932577,1759518643630,-414.49444702,0.00017,2]
[388932578,1759518643741,-936.16842682,0.00017,2]
[388932581,1759518646249,-367.26,0.00017,2]
[388932582,1759518646261,-466.23280001,0.00017,2]
[388932583,1759518646475,-533.24116528,0.00017,2]
[388932584,1759518646500,-1404.765,0.00017,2]
[388932585,1759518646511,-12137.65269975,0.00017,2]
[388932586,1759518646523,-76600.0186563,0.00017,2]
[388932587,1759518646540,-6972.16666259,0.00017,2]
[388932588,1759518646577,-16595.26376891,0.00017,2]
[388932589,1759518646593,-3988.2481899,0.00017,2]
[388932590,1759518646604,-300907.77591694,0.00017,2]
[388932591,1759518646647,-24849.59999174,0.00017,2]
[388932592,1759518685714,1472.7,0.00015962,2]
[388932593,1759518699159,1000.0,0.0001655,2]
[388932594,1759518700462,-200000.0,0.000181,120]
[388932595,1759518715459,1000.0,0.00016558,2]
[388932597,1759518716905,-242.67435899,0.00016603,2]
[388932598,1759518720845,-757.32564101,0.00016603,2]
[388932599,1759518720873,-15.64278276,0.00016613,2]
[388932600,1759518724320,-257.0,0.00016613,2]
[388932601,1759518725865,-259.65566281,0.00016613,2]
[388932602,1759518728813,-151.36,0.00016613,2]
[388932603,1759518731522,-192.21574143,0.00016613,2]
[388932604,1759518734233,-124.125813,0.00016613,2]
[388932605,1759518734254,-139.074187,0.00016626,2]
[388932606,1759518734536,-200000.0,0.000181,120]
[388932607,1759518735903,-348.87701262,0.00016626,2]